bitfinex/quotes_SOLUSD_20260305
["timestamp","ask_amount","ask_price","bid_price","bid_amount"]
[1772727409995,2.67156619,88.151,88.076,3.11035835]
[1772727410170,2.67156619,88.151,88.078,3.11035835]
[1772727410372,2.67156619,88.151,88.082,3.11035835]
[1772727411595,11.34429948,88.15,88.084,3.11035835]
[1772727411776,14.01625193,88.161,88.087,3.11035835]
[1772727411983,2.67336789,88.16,88.087,3.11035835]
[1772727412991,2.67514889,88.149,88.084,3.11035835]
[1772727413199,11.34145206,88.173,88.086,3.69383402]
[1772727413370,11.34145206,88.173,88.083,278.14674792]
[1772727413371,11.34134031,88.173,88.092,3.11035835]
[1772727413571,11.34081707,88.178,88.098,3.69383402]
[1772727413770,11.34081707,88.178,88.101,3.11035835]
[1772727414083,2.67690943,88.177,88.112,3.11035835]
[1772727415492,11.34056861,88.179,88.112,3.11035835]
[1772727415687,2.68037009,88.188,88.116,3.11035835]
[1772727415890,2.68037009,88.188,88.122,3.11035835]
[1772727416472,11.3397996,88.185,88.122,3.11035835]
[1772727416680,2.68037009,88.188,88.122,3.11035835]
[1772727417093,11.33998926,88.184,88.122,3.11035835]
[1772727417995,11.34000145,88.184,88.124,3.11035835]
[1772727418298,11.67012506,88.21,88.124,3.11035835]
[1772727418299,2.68541343,88.194,88.124,3.11035835]
[1772727418971,11.33969611,88.186,88.124,3.11035835]
[1772727419888,11.33963648,88.187,88.126,3.11035835]
[1772727420072,11.34006288,88.183,88.126,3.11035835]
[1772727420395,11.33940003,88.189,88.126,3.11035835]
[1772727420595,2.68541343,88.194,88.125,96.4539007]
[1772727420596,2.68541343,88.194,88.132,3.11035835]
[1772727421380,1e-08,88.18,88.129,3.39468149]
[1772727421574,2.69028498,88.214,88.136,3.11035835]
[1772727421791,2.69028498,88.213,88.147,3.39468149]
[1772727421984,11.33632612,88.212,88.147,3.39468149]
[1772727422190,2.69187167,88.211,88.147,3.11035835]
[1772727424137,2.69344014,88.209,88.149,3.11035835]
[1772727426396,2.69803827,88.207,88.15,39.7050482]
[1772727426695,2.69803827,88.199,88.15,11.34429948]
[1772727426882,2.69803827,88.199,88.151,3.11035835]
[1772727427084,2.69953591,88.238,88.154,3.11035835]
[1772727427289,2.69953591,88.199,88.145,11.34488281]
[1772727427486,220.99071837,88.239,88.146,3.11035835]
[1772727427487,2.69953591,88.229,88.146,3.11035835]
[1772727427691,2.69953591,88.229,88.149,3.11035835]
[1772727427994,2.69953591,88.229,88.161,3.11035835]
[1772727428184,2.69953591,88.229,88.148,3.69383402]
[1772727428185,2.70101634,88.227,88.163,3.11035835]
[1772727428386,2.70101634,88.219,88.163,3.11035835]
[1772727428978,2.70101634,88.23,88.163,3.11035835]
[1772727429400,2.70101634,88.23,88.165,3.11035835]
[1772727429600,14.03503846,88.23,88.165,3.11035835]
[1772727429801,2.70247977,88.243,88.171,3.11035835]
[1772727430878,2.7039264,88.241,88.173,3.11035835]
[1772727431278,2.7053564,88.249,88.181,3.11035835]
[1772727432505,2.70676998,88.239,88.181,3.11035835]
[1772727432799,11.33298578,88.238,88.183,3.11035835]
[1772727433302,2.70816733,88.239,88.183,3.11035835]
[1772727433892,2.70816733,88.264,88.185,3.11035835]
[1772727434083,2.70816733,88.264,88.191,3.11035835]
[1772727434298,11.33105956,88.253,88.191,3.11035835]
[1772727434687,0.2,88.28,88.199,0.14216157]
[1772727434891,11.32772233,88.279,88.206,3.11035835]
[1772727435093,2.71091405,88.278,88.208,3.11035835]
[1772727436986,11.32797897,88.277,88.21,3.11035835]
[1772727437298,11.32797897,88.277,88.212,3.11035835]
[1772727437693,2.71359804,88.276,88.212,3.11035835]
[1772727439317,2.71750952,88.274,88.214,3.00527207]
[1772727439490,0.2,88.28,88.213,96.3576797]
[1772727439491,0.2,88.28,88.216,3.00527207]
[1772727439686,0.2,88.28,88.222,3.00527207]
[1772727440112,0.2,88.28,88.232,3.00527207]
[1772727440605,0.2,88.32,88.216,5.01386588]
[1772727440606,2.71878351,88.308,88.247,0.14216157]
[1772727440812,2.71878351,88.318,88.252,3.00527207]
[1772727441188,2.72004287,88.316,88.254,3.00527207]
[1772727443288,2.72251835,88.314,88.256,3.00527207]
[1772727445397,2.7249373,88.312,88.258,3.00527207]
[1772727445916,0.2,88.32,88.258,3.00527207]
[1772727446214,2.72612598,88.318,88.258,3.00527207]
[1772727447312,11.32284837,88.317,88.26,3.22574633]
[1772727447611,11.32284837,88.317,88.243,45.32934211]
[1772727447612,2.72846252,88.299,88.244,3.22574633]
[1772727447791,2.72846252,88.289,88.242,1.3187865]
[1772727447994,11.67012506,88.28,88.224,14.56053051]
[1772727448214,0.14216157,88.296,88.224,14.56053051]
[1772727448215,1.41082421,88.316,88.225,3.22574633]
[1772727448407,1.69514735,88.316,88.229,3.22574633]
[1772727448708,1.41082421,88.309,88.231,3.22574633]
[1772727448909,1.41082421,88.309,88.239,3.22574633]
[1772727449813,1.41082421,88.309,88.227,3.69383402]
[1772727449814,1.4119592,88.289,88.241,3.22574633]
[1772727450698,1.69628234,88.289,88.233,11.33352097]
[1772727450897,1.69628234,88.289,88.234,3.22574633]
[1772727451219,1.41419024,88.307,88.237,3.22574633]
[1772727451421,1.41419024,88.307,88.239,3.22574633]
[1772727451623,1.41419024,88.299,88.239,3.22574633]
[1772727451913,1.41419024,88.297,88.241,3.22574633]
[1772727452228,11.32523781,88.299,88.244,3.22574633]
[1772727452628,1.41528657,88.298,88.244,3.22574633]
[1772727453801,1.41528657,88.298,88.248,3.22574633]
[1772727454023,1.41592237,88.318,88.252,3.22574633]
[1772727454404,0.2,88.32,88.254,3.22574633]
[1772727454607,0.2,88.32,88.262,3.22574633]
[1772727454817,0.2,88.32,88.268,3.22574633]
[1772727455199,11.32259196,88.319,88.268,3.22574633]
[1772727455820,0.2,88.32,88.27,3.22574633]
[1772727456725,11.32259196,88.319,88.27,3.22574633]
[1772727456901,0.2,88.32,88.27,3.22574633]
[1772727457228,0.2,88.32,88.275,3.22574633]
[1772727457528,0.16621293,88.32,88.293,3.22574633]
[1772727457737,0.2,88.34,88.295,3.22574633]
[1772727458424,11.32002852,88.339,88.295,3.22574633]
[1772727458726,0.2,88.34,88.295,3.22574633]
[1772727458904,11.32002852,88.339,88.295,3.22574633]
[1772727459099,1.41744906,88.338,88.295,3.22574633]
[1772727459620,1.41744906,88.338,88.253,45.32387846]
[1772727459621,1.41744906,88.309,88.259,3.22574633]
[1772727460024,1.41774395,88.299,88.218,3.22574633]
[1772727460326,1.41774395,88.299,88.22,3.69383402]
[1772727460629,1.41774395,88.289,88.228,3.22574633]
[1772727461003,1.41774395,88.279,88.228,3.22574633]
[1772727461521,1.41803546,88.269,88.217,39.67489258]
[1772727461723,1.41803546,88.269,88.218,3.22574633]
[1772727462023,11.32669588,88.287,88.223,3.22574633]
[1772727462217,11.32669588,88.287,88.225,3.22574633]
[1772727462531,11.32669588,88.287,88.229,3.22574633]
[1772727462710,1.41832363,88.286,88.229,3.22574633]
[1772727463311,1.41860848,88.279,88.22,3.22574633]
[1772727464110,11.32682418,88.286,88.222,3.22574633]
[1772727464316,11.32682418,88.286,88.224,3.22574633]
[1772727464624,1.41889006,88.285,88.228,3.22574633]
[1772727465823,11.32540937,88.298,88.238,3.22574633]
[1772727466030,11.32785065,88.278,88.224,3.22574633]
[1772727466325,1.41944355,88.277,88.224,3.22574633]
[1772727468029,1.4199844,88.275,88.225,11.3346557]
[1772727468232,1.4199844,88.275,88.226,3.22574633]
[1772727468733,1.4199844,88.269,88.206,3.22574633]
[1772727469026,1.4199844,88.269,88.199,0.81438588]
[1772727469027,1.4199844,88.269,88.218,3.27956007]
[1772727470025,1.42077261,88.267,88.217,11.33568359]
[1772727470219,1.42077261,88.256,88.178,3.27956007]
[1772727470527,1.42077261,88.209,88.157,3.27956007]
[1772727470728,1.42077261,88.199,88.157,3.27956007]
[1772727472120,1.42128311,88.197,88.157,3.27956007]
[1772727472627,56.67869678,88.217,88.124,3.69383402]
[1772727472628,11.33719624,88.206,88.159,3.27956007]
[1772727472803,1.42128311,88.216,88.159,3.27956007]
[1772727473009,1.42128311,88.208,88.159,3.27956007]
[1772727473255,11.33568359,88.217,88.159,3.27956007]
[1772727473537,1.42153397,88.219,88.164,3.27956007]
[1772727473714,1.42153397,88.227,88.143,3.27956007]
[1772727473917,1.42153397,88.213,88.14,0.14216157]
[1772727474117,11.3354266,88.219,88.149,3.27956007]
[1772727474323,39.67399312,88.219,88.151,3.27956007]
[1772727474632,1.42178194,88.218,88.151,3.27956007]
[1772727475217,1.42178194,88.218,88.154,0.14216157]
[1772727475533,11.33348597,88.235,88.174,0.28432314]
[1772727475739,11.33157316,88.249,88.189,3.27956007]
[1772727476136,11.33157316,88.249,88.191,3.27956007]
[1772727476339,39.66050606,88.249,88.191,3.27956007]
[1772727476537,1.42226939,88.248,88.191,3.27956007]
[1772727476833,1.42226939,88.239,88.191,3.27956007]
[1772727478437,1.4227457,88.237,88.192,3.27956007]
[1772727479547,1.42297976,88.229,88.192,3.27956007]
[1772727479739,1.42297976,88.229,88.182,14.61971847]
[1772727480046,41.08866138,88.238,88.183,3.27956007]
[1772727480249,41.08866138,88.238,88.185,3.27956007]
[1772727480457,1.42321113,88.229,88.185,3.27956007]
[1772727480658,1.42321113,88.219,88.173,3.27956007]
[1772727481165,1.42343984,88.209,88.165,0.65421968]
[1772727481656,186.99426549,88.238,88.13,0.1]
[1772727481657,11.6009959,88.17,88.133,3.27956007]
[1772727481838,1.42343984,88.159,88.13,0.1]
[1772727482037,1.42343984,88.159,88.12,3.37956007]
[1772727482254,28.35521995,88.168,88.122,3.27956007]
[1772727482432,1.32366593,88.159,88.12,0.1]
[1772727482636,11.6009959,88.15,88.12,0.1]
[1772727482862,1.32366593,88.149,88.12,0.1]
[1772727483039,1.22388942,88.164,88.1,3.27956007]
[1772727483240,1.22388942,88.159,88.102,3.27956007]
[1772727483431,1.22388942,88.149,88.102,3.27956007]
[1772727483745,28.35521995,88.168,88.102,3.27956007]
[1772727484233,28.35521995,88.168,88.104,3.27956007]
[1772727484833,28.35521995,88.168,88.106,3.27956007]
[1772727485148,28.35521995,88.168,88.103,39.72622952]
[1772727485149,11.34134031,88.173,88.108,3.27956007]
[1772727485329,11.33992561,88.184,88.11,3.27956007]
[1772727485531,11.33992561,88.184,88.128,3.27956007]
[1772727486253,46.57342439,88.206,88.129,39.7145094]
[1772727486447,11.6009959,88.16,88.117,3.27956007]
[1772727486673,1.22454461,88.198,88.117,3.27956007]
[1772727486867,1.50886775,88.189,88.117,3.27956007]
[1772727487546,11.6009959,88.18,88.117,3.27956007]
[1772727488056,39.69199015,88.179,88.119,3.27956007]
[1772727488240,1.22481585,88.178,88.119,3.27956007]
[1772727489832,39.69289042,88.177,88.121,3.27956007]
[1772727490549,1.22502371,88.149,88.096,3.27956007]
[1772727490731,1.22502371,88.149,88.097,3.27956007]
[1772727491149,11.6009959,88.16,88.097,3.27956007]
[1772727491351,1.22512585,88.159,88.097,3.27956007]
[1772727491939,1.22512585,88.157,88.097,3.27956007]
[1772727492238,1.22512585,88.157,88.099,3.27956007]
[1772727493945,39.70234583,88.156,88.101,3.27956007]
[1772727496239,39.70234583,88.156,88.103,3.27956007]
[1772727496659,1.22561924,88.155,88.103,3.27956007]
[1772727499042,12.56373387,88.201,88.107,3.17360159]
[1772727499358,1.22599394,88.189,88.108,3.17360159]
[1772727499857,1.22599394,88.2,88.119,3.45792473]
[1772727500060,1.22599394,88.2,88.104,175.92844817]
[1772727500061,11.6009959,88.13,88.061,3.34084343]
[1772727500240,3.01082236,88.099,88.013,28.40486267]
[1772727500656,3.01082236,88.097,88.011,11.36221608]
[1772727500844,3.01082236,88.083,88.011,11.36221608]
[1772727501043,3.01082236,88.069,88.01,0.1]
[1772727501266,232.72446556,88.087,88.01,0.1]
[1772727501267,3.01082236,88.059,88.01,0.1]
[1772727501965,3.2951455,88.083,88.01,0.1]
[1772727502144,0.14216157,88.082,88.011,3.17360159]
[1772727502347,3.01082236,88.067,88.011,3.17360159]
[1772727502546,3.01082236,88.067,87.99,0.1]
[1772727502547,3.01082236,88.039,87.99,0.1]
[1772727502749,3.01082236,88.037,87.99,3.27360159]
[1772727502941,39.75646326,88.036,87.99,3.27360159]
[1772727503662,11.3589895,88.036,87.992,3.17360159]
[1772727503865,11.35757038,88.047,87.992,3.17360159]
[1772727504061,11.35757038,88.047,87.994,3.17360159]
[1772727504768,11.35602266,88.059,88.004,3.17360159]
[1772727504947,3.01082236,88.082,88.006,3.17360159]
[1772727505149,3.01082236,88.082,88.01,3.17360159]
[1772727505351,39.73254321,88.089,88.014,3.17360159]
[1772727505561,11.3521552,88.089,88.028,3.17360159]
[1772727505758,11.3521552,88.089,88.035,0.14216157]
[1772727505966,11.3521552,88.089,88.044,3.17360159]
[1772727506367,1.13495783,88.118,88.015,4.83000399]
[1772727506368,3.01082236,88.105,88.015,4.83000399]
[1772727506563,3.2951455,88.074,87.955,11.36936348]
[1772727506756,3.01082236,88.029,87.955,11.36936348]
[1772727507063,3.34069754,88.017,87.936,28.42946584]
[1772727507286,3.34069754,88.009,87.936,28.42946584]
[1772727507569,3.34069754,88.009,87.937,0.28432314]
[1772727507872,3.34069754,88.009,87.936,28.42946584]
[1772727508061,3.34069754,88.027,87.937,4.82477569]
[1772727508252,3.34069754,88.027,87.938,0.85480315]
[1772727508442,3.34069754,88.027,87.951,3.25401958]
[1772727508648,3.34069754,88.027,87.955,3.25401958]
[1772727508971,3.34069754,88.025,87.957,3.25401958]
[1772727509671,11.36027991,88.026,87.957,3.25401958]
[1772727509973,11.3583444,88.041,87.976,3.25401958]
[1772727510462,3.34069754,88.04,87.976,3.25401958]
[1772727510671,11.3583444,88.041,87.986,3.25401958]
[1772727511067,3.34069754,88.066,87.99,3.25401958]
[1772727511361,3.34069754,88.065,87.996,3.25401958]
[1772727511564,4.76010366,88.065,87.996,3.25401958]
[1772727511771,3.34069754,88.064,87.996,3.25401958]
[1772727512563,14.69504398,88.072,88.002,3.25401958]
[1772727512780,3.34069754,88.071,88.014,3.25401958]
[1772727513146,14.69530183,88.07,88.016,3.25401958]
[1772727513373,3.34069754,88.094,88.018,3.25401958]
[1772727513666,3.34069754,88.094,88.026,3.25401958]
[1772727514251,11.35086663,88.099,88.036,3.25401958]
[1772727514664,3.34069754,88.098,88.036,3.25401958]
[1772727515056,11.35112432,88.097,88.037,39.75601166]
[1772727515259,11.35112432,88.097,88.038,3.25401958]
[1772727516145,14.69101101,88.104,88.04,3.25401958]
[1772727516482,3.34069754,88.102,88.037,11.35886047]
[1772727516769,3.34069754,88.1,88.038,3.25401958]
[1772727516978,3.34069754,88.098,88.038,3.25401958]
[1772727517267,3.34069754,88.094,88.039,11.35860243]
[1772727517474,3.34069754,88.094,88.04,3.25401958]
[1772727517662,3.34069754,88.093,88.04,3.25401958]
[1772727517860,3.34069754,88.091,88.04,3.25401958]
[1772727518063,3.34069754,88.089,88.04,3.25401958]
[1772727518283,3.34069754,88.087,88.04,3.25401958]
[1772727518458,3.34069754,88.085,88.04,3.25401958]
[1772727519357,3.34069754,88.083,88.04,3.25401958]
[1772727519763,3.34069754,88.083,88.041,11.3583444]
[1772727519960,3.34069754,88.083,88.042,3.25401958]
[1772727521082,39.7347986,88.084,88.042,3.25401958]
[1772727521083,3.25380858,88.081,88.042,3.25401958]
[1772727522358,3.25380858,88.079,88.042,3.25401958]
[1772727522756,3.25380858,88.079,88.034,11.35912373]
[1772727523071,3.25380858,88.078,88.031,11.35963467]
[1772727523663,3.25380858,88.076,88.03,3.13208639]
[1772727523971,3.25380858,88.074,88.032,3.13208639]
[1772727524782,11.35421752,88.073,88.033,11.35937659]
[1772727524981,3.25380858,88.078,88.034,3.13208639]
[1772727525479,28.38013595,88.09,88.034,3.13208639]
[1772727525480,11.35292867,88.083,88.034,3.13208639]
[1772727525799,3.25380858,88.103,88.036,3.13208639]
[1772727525960,11.66084443,88.14,88.046,3.13208639]
[1772727525961,28.37171635,88.116,88.046,3.13208639]
[1772727526273,1.41829486,88.134,88.06,3.13208639]
[1772727526274,3.25380858,88.125,88.06,3.13208639]
[1772727526465,3.25380858,88.15,88.07,3.13208639]
[1772727526665,3.25380858,88.15,88.084,3.13208639]
[1772727526865,3.25380858,88.15,88.083,0.28432314]
[1772727526866,3.25380858,88.148,88.09,3.13208639]
[1772727527065,3.25380858,88.16,88.09,3.13208639]
[1772727527287,3.25380858,88.16,88.096,3.13208639]
[1772727528883,3.29844698,88.158,88.098,3.10361339]
[1772727529260,3.29844698,88.158,88.106,3.10361339]
[1772727530675,3.29844698,88.156,88.098,3.10361339]
[1772727530983,3.29844698,88.156,88.076,0.28432314]
[1772727530984,3.29844698,88.153,88.1,3.10361339]
[1772727531561,3.29844698,88.168,88.102,3.10361339]
[1772727531882,11.34198348,88.168,88.106,3.10361339]
[1772727532087,3.29844698,88.188,88.112,3.10361339]
[1772727532268,3.29844698,88.188,88.116,3.10361339]
[1772727532468,3.29844698,88.188,88.122,3.10361339]
[1772727532683,3.29844698,88.188,88.126,3.10361339]
[1772727532888,14.63798682,88.187,88.127,39.71541071]
[1772727533190,1.41724962,88.199,88.131,3.10361339]
[1772727533365,11.33529811,88.22,88.139,3.10361339]
[1772727533570,1.41692832,88.219,88.151,3.10361339]
[1772727533770,11.33529811,88.22,88.155,3.10361339]
[1772727534286,11.33298578,88.238,88.157,3.10361339]
[1772727534582,11.33093117,88.254,88.174,0.28432314]
[1772727534789,11.33093117,88.254,88.185,3.10361339]
[1772727534969,11.33028926,88.259,88.187,3.10361339]
[1772727535166,3.17239813,88.258,88.187,3.10361339]
[1772727535361,3.17239813,88.239,88.175,14.44464904]
[1772727535568,3.17239813,88.229,88.173,11.34122427]
[1772727535781,3.17239813,88.227,88.168,11.34195741]
[1772727535977,3.17239813,88.219,88.168,11.34195741]
[1772727536173,3.17406909,88.217,88.168,11.34195741]
[1772727536376,3.17406909,88.215,88.168,11.34195741]
[1772727536586,3.17406909,88.239,88.171,3.10361339]
[1772727536785,3.17406909,88.237,88.173,3.10361339]
[1772727536988,4.59070836,88.237,88.175,3.10361339]
[1772727537179,4.59070836,88.237,88.174,56.99038161]
[1772727537180,3.17572085,88.246,88.183,3.10361339]
[1772727537373,3.17572085,88.245,88.183,3.10361339]
[1772727537575,3.17572085,88.239,88.174,11.34121169]
[1772727537780,3.17572085,88.229,88.174,11.34121169]
[1772727538078,3.17572085,88.227,88.174,11.34121169]
[1772727538272,3.17735364,88.225,88.174,11.34121169]
[1772727538478,3.17735364,88.223,88.172,14.44499553]
[1772727538690,3.17735364,88.221,88.172,14.44499553]
[1772727538992,3.17735364,88.219,88.161,3.10361339]
[1772727539175,3.17791997,88.217,88.163,3.10361339]
[1772727541190,3.17903317,88.229,88.165,3.10361339]
[1772727541488,3.17903317,88.235,88.173,3.10361339]
[1772727542400,3.1795802,88.229,88.173,3.10361339]
[1772727542573,3.1795802,88.235,88.173,3.10361339]
[1772727542769,3.1795802,88.234,88.173,3.10361339]
[1772727542989,3.1795802,88.232,88.173,3.10361339]
[1772727543183,3.18012095,88.229,88.175,3.10361339]
[1772727543389,3.18012095,88.227,88.175,2.42546198]
[1772727543588,3.29844698,88.225,88.175,2.42546198]
[1772727543802,3.29844698,88.223,88.175,2.42546198]
[1772727544288,3.29844698,88.221,88.175,2.42546198]
[1772727544486,3.29844698,88.219,88.175,2.42546198]
[1772727544795,3.29844698,88.217,88.175,2.42546198]
[1772727545170,3.29844698,88.215,88.158,0.56414764]
[1772727545374,39.67534233,88.216,88.144,3.10361339]
[1772727545375,3.29844698,88.199,88.144,3.10361339]
[1772727545593,11.66084443,88.18,88.132,3.10361339]
[1772727545800,3.29844698,88.169,88.093,3.10361339]
[1772727546290,3.29844698,88.169,88.1,3.10361339]
[1772727546482,3.29844698,88.182,88.106,3.10361339]
[1772727546683,3.29844698,88.182,88.112,3.10361339]
[1772727547191,3.29844698,88.177,88.114,3.10361339]
[1772727547398,3.29844698,88.169,88.114,3.10361339]
[1772727547778,3.29844698,88.159,88.109,3.10361339]
[1772727549378,11.34327003,88.158,88.111,3.10361339]
[1772727550396,39.70144512,88.158,88.111,3.10361339]
[1772727550584,42.9998921,88.158,88.111,3.10361339]
[1772727550789,3.29844698,88.157,88.111,3.10361339]
[1772727551000,11.34327003,88.158,88.111,3.10361339]
[1772727551203,3.29844698,88.157,88.111,3.10361339]
[1772727551376,3.29844698,88.166,88.113,3.10361339]
[1772727551741,11.34211212,88.167,88.105,11.34998806]
[1772727551742,3.29844698,88.159,88.105,11.34998806]
[1772727551894,3.29844698,88.159,88.106,3.10361339]
[1772727552496,3.29844698,88.149,88.106,3.10361339]
[1772727552900,3.29844698,88.129,88.077,14.45727565]
[1772727553201,3.29844698,88.119,88.086,3.10361339]
[1772727553405,3.29844698,88.129,88.074,3.10361339]
[1772727554093,3.29844698,88.129,88.063,28.38852334]
[1772727554295,3.29844698,88.109,88.056,11.35640955]
[1772727554495,3.29844698,88.109,88.057,3.10361339]
[1772727554692,3.29844698,88.127,88.057,3.10361339]
[1772727555502,3.29844698,88.127,88.04,3.69383402]
[1772727555503,3.29844698,88.119,88.059,3.10361339]
[1772727555906,3.29844698,88.109,88.059,3.10361339]
[1772727556110,3.29844698,88.109,88.053,11.35674481]
[1772727556731,3.29844698,88.119,88.054,3.10361339]
[1772727556936,39.71586137,88.126,88.056,3.10361339]
[1772727557102,39.71586137,88.126,88.062,3.10361339]
[1772727557304,3.29844698,88.125,88.062,3.10361339]
[1772727557624,3.29844698,88.123,88.064,3.10361339]
[1772727559029,1.418488,88.122,88.064,3.10361339]
[1772727559924,39.71811485,88.121,88.066,3.27374946]
[1772727560223,1.41852019,88.12,88.066,3.27374946]
[1772727560425,4.7038768,88.12,88.066,3.27374946]
[1772727560928,39.71811485,88.121,88.066,3.27374946]
[1772727561428,3.28535661,88.119,88.066,3.27374946]
[1772727561615,3.28535661,88.117,88.066,3.27374946]
[1772727561810,3.28535661,88.114,88.068,3.27374946]
[1772727562428,11.34789772,88.123,88.07,3.27374946]
[1772727562718,11.34789772,88.123,88.067,39.74246879]
[1772727562719,11.34789772,88.123,88.072,3.27374946]
[1772727563120,11.66084443,88.15,88.072,3.27374946]
[1772727563121,3.28535661,88.133,88.072,3.27374946]
[1772727563326,11.34532912,88.142,88.074,3.27374946]
[1772727563530,11.34532912,88.142,88.082,3.27374946]
[1772727563903,3.28535661,88.151,88.084,3.27374946]
[1772727564101,11.3440421,88.152,88.087,3.27374946]
[1772727564308,11.3440421,88.152,88.094,0.28432314]
[1772727564502,11.3440421,88.152,88.103,3.27374946]
[1772727564937,3.28535661,88.161,88.103,3.27374946]
[1772727564938,11.34346131,88.157,88.103,3.27374946]
[1772727565507,11.34224077,88.166,88.103,3.27374946]
[1772727565826,42.97515341,88.184,88.123,3.27374946]
[1772727566128,3.28535661,88.18,88.123,3.27374946]
[1772727566332,3.28535661,88.178,88.123,3.27374946]
[1772727566622,3.28535661,88.159,88.094,3.27374946]
[1772727566822,3.28535661,88.157,88.094,3.27374946]
[1772727567017,3.15484774,88.155,88.094,3.27374946]
[1772727567225,3.15484774,88.153,88.094,3.27374946]
[1772727568025,11.3440421,88.152,88.096,3.18572874]
[1772727569026,3.15484774,88.151,88.096,3.18572874]
[1772727569228,3.15484774,88.15,88.096,3.18572874]
[1772727569429,3.15484774,88.148,88.094,3.18572874]
[1772727569647,3.15484774,88.146,88.094,3.18572874]
[1772727570224,39.70730046,88.145,88.096,3.18572874]
[1772727570433,3.15484774,88.143,88.096,3.18572874]
[1772727570731,39.70730046,88.145,88.096,3.18572874]
[1772727570933,42.8621482,88.145,88.096,3.18572874]
[1772727571228,11.34494299,88.145,88.096,3.18572874]
[1772727571631,14.49979073,88.145,88.096,3.18572874]
[1772727571810,3.15484774,88.144,88.096,3.18572874]
[1772727573027,3.15484774,88.142,88.098,3.18572874]
[1772727573525,3.15484774,88.139,88.087,11.3523899]
[1772727573830,3.15484774,88.138,88.085,3.18572874]
[1772727574124,3.15484774,88.129,88.085,3.18572874]
[1772727574327,3.15484774,88.127,88.085,3.18572874]
[1772727574508,3.15484774,88.125,88.076,11.35376638]
[1772727574715,3.15484774,88.123,88.076,11.35376638]
[1772727574916,3.15484774,88.12,88.077,3.18572874]
[1772727575115,3.15484774,88.118,88.077,3.18572874]
[1772727576718,11.34803281,88.121,88.077,3.18572874]
[1772727576913,11.3472602,88.127,88.079,3.18572874]
[1772727577229,3.15484774,88.126,88.079,3.18572874]
[1772727577743,3.15484774,88.124,88.079,3.18572874]
[1772727578031,3.15484774,88.123,88.079,3.18572874]
[1772727578419,39.71541071,88.127,88.079,3.18572874]
[1772727578826,39.71541071,88.127,88.078,11.35357296]
[1772727578827,11.34468558,88.147,88.081,3.18572874]
[1772727579130,39.70639953,88.147,88.083,3.18572874]
[1772727579315,1.41810178,88.146,88.083,3.18572874]
[1772727579635,3.15484774,88.146,88.083,3.18572874]
[1772727580133,11.34411609,88.152,88.089,3.18572874]
[1772727580346,39.70422136,88.152,88.091,3.18572874]
[1772727580527,39.70422136,88.152,88.093,3.18572874]
[1772727580914,42.8590691,88.152,88.093,3.18572874]
[1772727581331,42.8590691,88.152,88.095,3.18572874]
[1772727581635,3.15484774,88.151,88.095,3.18572874]
[1772727582336,11.34411609,88.152,88.097,3.18572874]
[1772727582537,11.34345379,88.157,88.103,3.18572874]
[1772727583355,11.34345379,88.157,88.105,3.18572874]
[1772727584211,3.15484774,88.155,88.105,3.18572874]
[1772727584411,3.15484774,88.153,88.105,3.18572874]
[1772727585423,11.34198348,88.168,88.107,3.18572874]
[1772727585633,11.34198348,88.168,88.113,3.18572874]
[1772727585844,3.15484774,88.193,88.125,3.18572874]
[1772727586155,3.15484774,88.193,88.113,3.69383402]
[1772727586156,3.15484774,88.193,88.133,3.18572874]
[1772727586438,11.33838269,88.196,88.133,3.18572874]
[1772727587524,28.34566281,88.197,88.135,3.18572874]
[1772727587835,31.50051055,88.197,88.135,3.18572874]
[1772727588223,3.15484774,88.196,88.135,3.18572874]
[1772727588433,3.15484774,88.194,88.135,3.18572874]
[1772727590048,11.33876838,88.193,88.137,3.1754169]
[1772727590245,11.33825186,88.198,88.139,3.1754169]
[1772727590460,11.33825186,88.198,88.143,3.1754169]
[1772727590461,3.16066254,88.197,88.143,3.1754169]
[1772727591140,3.16066254,88.195,88.143,3.1754169]
[1772727591342,3.16066254,88.193,88.143,3.1754169]
[1772727591518,3.16066254,88.191,88.143,3.1754169]
[1772727591916,3.16066254,88.2,88.144,39.70775095]
[1772727592119,3.16066254,88.2,88.145,3.1754169]
[1772727593556,3.16066254,88.198,88.145,3.1754169]
[1772727593721,3.16066254,88.196,88.145,3.1754169]
[1772727593916,3.16066254,88.194,88.145,3.1754169]
[1772727594122,3.16066254,88.192,88.146,11.34481428]
[1772727594342,3.16066254,88.19,88.146,11.34481428]
[1772727594536,3.16066254,88.188,88.147,3.1754169]
[1772727595344,3.16066254,88.187,88.147,3.1754169]
[1772727596036,3.16066254,88.187,88.12,3.69383402]
[1772727596037,11.33966842,88.186,88.149,3.1754169]
[1772727597436,3.16066254,88.185,88.149,3.1754169]
[1772727597748,3.16066254,88.185,88.087,45.40937905]
[1772727597749,3.16066254,88.185,88.121,11.34803281]
[1772727597923,3.16066254,88.185,88.083,45.41160163]
[1772727597924,3.16066254,88.149,88.098,11.35093968]
[1772727598126,3.16066254,88.129,88.048,96.53825184]
[1772727598324,3.16066254,88.119,88.048,39.75104487]
[1772727598733,3.16066254,88.119,88.049,0.28432314]
[1772727599058,3.16066254,88.119,88.048,39.75104487]
[1772727599223,3.16066254,88.109,88.048,39.75104487]
[1772727599732,3.16066254,88.109,88.049,3.1754169]